bitfinex/quotes_BTCUSD_20251217
["timestamp","ask_amount","ask_price","bid_price","bid_amount"]
[1765963942033,0.0108073,86437.0,86428.0,0.01157032]
[1765963942235,0.0108073,86436.0,86430.0,0.01157005]
[1765963942433,0.0108073,86435.0,86430.0,0.00161287]
[1765963942643,0.0108073,86434.0,86430.0,0.00161287]
[1765963942870,0.0108073,86433.0,86430.0,0.00161287]
[1765963943076,0.03112994,86440.0,86430.0,0.00161287]
[1765963943077,0.0108073,86432.0,86430.0,0.00161287]
[1765963943271,0.0108073,86431.0,86430.0,0.00161287]
[1765963943473,0.04193724,86440.0,86430.0,0.00161287]
[1765963943685,0.0108073,86439.0,86430.0,0.34149962]
[1765963943886,0.0108073,86438.0,86430.0,0.00161287]
[1765963944088,0.0108073,86437.0,86430.0,0.00161287]
[1765963944262,0.0108073,86436.0,86430.0,0.00161287]
[1765963944450,0.0108073,86436.0,86430.0,0.00261287]
[1765963944649,0.0108073,86435.0,86430.0,0.00261287]
[1765963944856,0.24293958,86442.0,86430.0,0.00161287]
[1765963944857,0.0108073,86434.0,86430.0,0.00161287]
[1765963945059,0.0108073,86433.0,86430.0,0.00161287]
[1765963945278,0.0108073,86432.0,86430.0,0.00261287]
[1765963945484,0.0108073,86431.0,86430.0,0.00361287]
[1765963945682,0.0108073,86431.0,86430.0,0.01418292]
[1765963945918,0.03112994,86442.0,86430.0,0.00161287]
[1765963946135,0.01080012,86441.0,86430.0,0.00261287]
[1765963946298,0.01156885,86439.0,86430.0,0.00261287]
[1765963946518,0.01080012,86438.0,86430.0,0.00261287]
[1765963946727,0.01080012,86437.0,86430.0,0.00261287]
[1765963946887,0.01080012,86436.0,86430.0,0.00361287]
[1765963947092,0.01080012,86435.0,86430.0,0.00261287]
[1765963947292,0.03733141,86434.0,86430.0,0.00161287]
[1765963947505,0.01080012,86433.0,86430.0,0.00261287]
[1765963947713,0.01080012,86432.0,86430.0,0.00461287]
[1765963947916,0.01080012,86431.0,86430.0,0.00369287]
[1765963948130,0.01080012,86431.0,86430.0,0.00169287]
[1765963948350,0.01080012,86431.0,86430.0,0.003]
[1765963948789,0.01080012,86431.0,86430.0,0.001]
[1765963949034,0.01080012,86436.0,86430.0,0.001]
[1765963949239,0.01080012,86435.0,86430.0,0.002]
[1765963949478,0.01080012,86434.0,86430.0,0.002]
[1765963949660,0.01080012,86434.0,86430.0,0.003]
[1765963949860,0.01080012,86433.0,86430.0,0.002]
[1765963950120,0.01080012,86432.0,86430.0,0.002]
[1765963950253,0.01080012,86431.0,86430.0,0.003]
[1765963950455,0.01079774,86435.0,86431.0,0.0007646]
[1765963950699,0.01079775,86434.0,86430.0,0.001]
[1765963950899,0.01079775,86433.0,86430.0,0.002]
[1765963951099,0.01079775,86432.0,86430.0,0.001]
[1765963951260,0.01079775,86431.0,86426.0,7.901e-05]
[1765963951457,0.01079775,86430.0,86426.0,7.901e-05]
[1765963951657,0.01079775,86429.0,86426.0,0.00077188]
[1765963952001,0.01079775,86428.0,86426.0,0.00077188]
[1765963952206,0.24295415,86437.0,86426.0,0.00077188]
[1765963952424,0.01079675,86436.0,86426.0,0.00077188]
[1765963952608,0.022366,86436.0,86430.0,0.002]
[1765963952834,0.02236613,86435.0,86430.0,0.002]
[1765963953032,0.24296605,86432.0,86426.0,0.00077188]
[1765963953186,0.01157019,86429.0,86426.0,0.00277188]
[1765963953383,0.34709567,86427.0,86426.0,0.00207901]
[1765963953660,0.64951241,86427.0,86426.0,0.00407901]
[1765963953812,0.67443574,86427.0,86426.0,0.00407901]
[1765963954014,0.67443574,86427.0,86426.0,7.901e-05]
[1765963954184,0.76673076,86427.0,86426.0,7.901e-05]
[1765963954381,0.5353216,86427.0,86426.0,7.901e-05]
[1765963954628,0.47411236,86427.0,86426.0,0.00107901]
[1765963954826,0.41810325,86427.0,86426.0,0.00107901]
[1765963955005,0.12648326,86427.0,86426.0,0.00107901]
[1765963955215,0.12648326,86427.0,86426.0,7.901e-05]
[1765963955592,0.01079675,86427.0,86426.0,0.00077188]
[1765963955999,0.01079675,86431.0,86426.0,0.00077188]
[1765963956256,0.01079675,86430.0,86426.0,0.00077188]
[1765963956761,0.01079675,86430.0,86429.0,0.00082834]
[1765963956987,0.01079675,86432.0,86429.0,0.00082834]
[1765963957154,0.02236667,86431.0,86426.0,0.00277188]
[1765963957371,0.01079675,86430.0,86426.0,0.00177188]
[1765963957718,0.01079675,86430.0,86426.0,0.00077188]
[1765963957947,0.57647449,86430.0,86429.0,0.00082834]
[1765963958172,0.60139782,86430.0,86429.0,0.00082834]
[1765963958323,0.60134589,86430.0,86429.0,0.00082834]
[1765963959127,0.60134589,86430.0,86429.0,0.00120576]
[1765963959561,0.60134589,86430.0,86429.0,0.00220576]
[1765963960200,0.60134589,86430.0,86429.0,0.00320576]
[1765963961361,0.3272866,86430.0,86429.0,0.00320576]
[1765963961572,0.30241674,86430.0,86429.0,0.00320576]
[1765963963404,0.33350933,86430.0,86429.0,0.00320576]
[1765963963956,0.30241674,86430.0,86429.0,0.00320576]
[1765963964504,0.33350933,86430.0,86429.0,0.00320576]
[1765963964801,0.30241674,86430.0,86429.0,0.00320576]
[1765963965206,0.33350933,86430.0,86429.0,0.00320576]
[1765963965574,0.30241674,86430.0,86429.0,0.00320576]
[1765963965990,0.33260968,86430.0,86429.0,0.00320576]
[1765963966413,0.30149675,86430.0,86429.0,0.00320576]
[1765963966621,0.33626087,86430.0,86429.0,0.00320576]
[1765963966996,0.30149675,86430.0,86429.0,0.00320576]
[1765963971205,0.53289788,86430.0,86429.0,0.00320576]
[1765963971720,0.55776774,86430.0,86429.0,0.00320576]
[1765963972465,0.32636661,86430.0,86429.0,0.00320576]
[1765963972678,0.30149675,86430.0,86429.0,0.00320576]
[1765963974572,0.01079675,86430.0,86429.0,0.00389863]
[1765963975386,0.04195261,86430.0,86429.0,0.00389863]
[1765963976824,0.01079675,86430.0,86429.0,0.00389863]
[1765963978159,0.01079675,86430.0,86429.0,0.23530244]
[1765963978369,0.01079675,86430.0,86429.0,0.00389863]
[1765963978597,0.01079675,86432.0,86429.0,0.00389863]
[1765963978762,0.01079675,86432.0,86429.0,0.00307029]
[1765963978956,0.01914263,86432.0,86429.0,0.00307029]
[1765963979153,0.01079675,86431.0,86429.0,0.00307029]
[1765963979559,0.01079675,86431.0,86429.0,0.00207029]
[1765963979962,0.01079675,86430.0,86429.0,0.00207029]
[1765963980158,0.03115586,86433.0,86429.0,0.00207029]
[1765963980159,0.01079675,86432.0,86429.0,0.00207029]
[1765963980380,0.01079675,86431.0,86429.0,0.00107029]
[1765963980596,0.01079675,86430.0,86429.0,0.00207029]
[1765963980977,0.01082559,86430.0,86429.0,0.00207029]
[1765963981376,0.04198145,86432.0,86429.0,0.00207029]
[1765963981583,0.01082559,86431.0,86429.0,0.00207029]
[1765963981783,0.01082559,86431.0,86429.0,0.00307029]
[1765963981961,0.02033127,86431.0,86429.0,0.00307029]
[1765963982162,0.01082559,86430.0,86429.0,0.00207029]
[1765963982370,0.01082559,86430.0,86429.0,0.00307029]
[1765963982620,0.01082559,86430.0,86429.0,0.00207029]
[1765963982856,0.01082559,86432.0,86429.0,0.00207029]
[1765963983078,0.01082559,86431.0,86429.0,0.00207029]
[1765963983314,0.01082559,86430.0,86429.0,0.00307029]
[1765963983731,0.01082559,86433.0,86429.0,0.00207029]
[1765963983907,0.01082559,86432.0,86429.0,0.00207029]
[1765963984244,0.01082559,86432.0,86431.0,0.0007646]
[1765963986835,0.24314135,86432.0,86431.0,0.0007646]
[1765963987038,0.53384135,86432.0,86431.0,0.0007646]
[1765963987240,0.60025602,86432.0,86431.0,0.0007646]
[1765963987414,0.55871121,86432.0,86431.0,0.0017646]
[1765963987619,0.36885962,86432.0,86431.0,0.0017646]
[1765963987843,0.34398976,86432.0,86431.0,0.0017646]
[1765963988085,0.57538553,86432.0,86431.0,0.0017646]
[1765963988238,0.60025539,86432.0,86431.0,0.0017646]
[1765963988438,0.36885962,86432.0,86431.0,0.0017646]
[1765963988649,0.32731544,86432.0,86431.0,0.0017646]
[1765963988865,0.30244558,86432.0,86431.0,0.0017646]
[1765963989059,0.34398868,86432.0,86431.0,0.0017646]
[1765963989266,0.34398793,86432.0,86431.0,0.0017646]
[1765963989580,0.30244558,86432.0,86431.0,0.0017646]
[1765963989755,0.34398511,86432.0,86431.0,0.0017646]
[1765963989957,0.30244558,86432.0,86431.0,0.0017646]
[1765963991616,0.01082559,86432.0,86431.0,0.0017646]
[1765963991782,0.04198503,86432.0,86431.0,0.0017646]
[1765963992218,0.01082559,86432.0,86431.0,0.0017646]
[1765963992575,0.04198503,86432.0,86431.0,0.0017646]
[1765963993125,0.10254569,86432.0,86431.0,0.0017646]
[1765963993328,0.59348202,86432.0,86431.0,0.0017646]
[1765963993504,0.63502155,86432.0,86431.0,0.0017646]
[1765963993709,0.59933075,86432.0,86431.0,0.0017646]
[1765963993916,0.57446089,86432.0,86431.0,0.0017646]
[1765963998301,0.31556986,86432.0,86431.0,0.0017646]
[1765963998541,0.52209577,86432.0,86431.0,0.0017646]
[1765963998897,0.2907,86432.0,86431.0,0.0017646]
[1765964001448,0.2907,86432.0,86431.0,0.00245747]
[1765964001648,0.03116092,86438.0,86431.0,0.00245747]
[1765964001801,0.32186092,86441.0,86431.0,0.00169287]
[1765964002732,0.32186092,86441.0,86431.0,0.00069287]
[1765964002910,0.32286092,86441.0,86431.0,0.00069287]
[1765964003853,0.34773078,86441.0,86431.0,0.00069287]
[1765964004158,0.32286092,86441.0,86431.0,0.00069287]
[1765964004449,0.32386092,86441.0,86431.0,0.00069287]
[1765964004762,0.32286092,86441.0,86431.0,0.00069287]
[1765964005051,0.32186092,86441.0,86431.0,0.00069287]
[1765964005958,0.2907,86441.0,86431.0,0.00069287]
[1765964007229,0.31556986,86441.0,86437.0,0.00057341]
[1765964007422,0.31556986,86441.0,86431.0,0.00069287]
[1765964007423,0.2907,86441.0,86431.0,0.00069287]
[1765964007949,0.31556986,86441.0,86431.0,0.00069287]
[1765964008279,0.03116092,86435.0,86431.0,0.00069287]
[1765964010147,0.01082003,86434.0,86431.0,0.00069287]
[1765964010345,0.01082003,86434.0,86431.0,0.00169287]
[1765964011179,0.01082003,86434.0,86431.0,0.00069287]
[1765964011606,0.01082003,86434.0,86431.0,0.00269287]
[1765964011788,0.01082003,86434.0,86431.0,0.00169287]
[1765964011985,0.01082003,86434.0,86431.0,0.00069287]
[1765964012187,0.01082003,86434.0,86431.0,0.00169287]
[1765964012406,0.01082003,86433.0,86431.0,0.00269287]
[1765964012725,0.01082003,86432.0,86431.0,0.00269287]
[1765964012854,0.01082003,86432.0,86431.0,0.00169287]
[1765964013059,0.04198095,86433.0,86431.0,0.00269287]
[1765964013279,0.04198095,86432.0,86431.0,0.00269287]
[1765964013486,0.2422158,86432.0,86431.0,0.00169287]
[1765964013780,0.2422158,86432.0,86431.0,0.00269287]
[1765964014012,0.2422158,86432.0,86431.0,0.001]
[1765964014375,0.23139845,86431.0,86429.0,0.00037742]
[1765964014577,0.01082003,86430.0,86429.0,0.00037742]
[1765964015491,0.01082003,86430.0,86429.0,0.00137742]
[1765964016246,0.01082003,86430.0,86429.0,0.00337742]
[1765964016455,0.01082109,86430.0,86429.0,0.00337742]
[1765964017005,0.01158109,86431.0,86429.0,0.00237742]
[1765964017198,0.04273974,86431.0,86429.0,0.00337742]
[1765964017347,0.01082109,86430.0,86429.0,0.00337742]
[1765964017962,0.01082109,86430.0,86429.0,0.00037742]
[1765964018206,0.01082109,86430.0,86429.0,0.00137742]
[1765964018409,0.01082109,86430.0,86429.0,0.00337742]
[1765964018614,0.01082109,86430.0,86429.0,0.00237742]
[1765964018788,0.01082109,86430.0,86429.0,0.00320576]
[1765964019165,0.24222222,86430.0,86429.0,0.00320576]
[1765964019369,0.01082109,86430.0,86429.0,0.00320576]
[1765964020228,0.24314221,86430.0,86429.0,0.00320576]
[1765964020428,0.24314221,86430.0,86429.0,0.00420576]
[1765964021034,0.01174108,86430.0,86429.0,0.00220576]
[1765964021230,0.27430086,86430.0,86429.0,0.00120576]
[1765964021472,0.27430086,86430.0,86429.0,0.00220576]
[1765964021751,0.27430086,86430.0,86429.0,0.00320576]
[1765964024176,0.24314221,86430.0,86429.0,0.00320576]
[1765964025034,0.24314221,86430.0,86429.0,0.00220576]
[1765964025279,0.24314221,86430.0,86429.0,0.00120576]
[1765964026171,0.53384221,86430.0,86429.0,0.00120576]
[1765964026343,0.56335082,86430.0,86429.0,0.00120576]
[1765964027553,0.62566472,86430.0,86429.0,0.00120576]
[1765964027756,0.62666472,86430.0,86429.0,0.00120576]
[1765964028213,0.62665067,86430.0,86429.0,0.00120576]
[1765964028467,0.62765067,86430.0,86429.0,0.00120576]
[1765964028756,0.62665067,86430.0,86429.0,0.00120576]
[1765964028890,0.62765067,86430.0,86429.0,0.00120576]
[1765964029554,0.56535082,86430.0,86429.0,0.00120576]
[1765964030712,0.33394969,86430.0,86429.0,0.00120576]
[1765964030931,0.30907983,86430.0,86429.0,0.00120576]
[1765964031136,0.54048096,86430.0,86429.0,0.00120576]
[1765964032640,0.58199212,86430.0,86429.0,0.00120576]
[1765964033044,0.35059099,86430.0,86429.0,0.00120576]
[1765964033276,0.60686198,86430.0,86429.0,0.00120576]
[1765964033491,0.37546085,86430.0,86429.0,0.00120576]
[1765964033669,0.35059099,86430.0,86429.0,0.00120576]
[1765964035453,0.68760409,86430.0,86429.0,0.00120576]
[1765964035689,0.60686198,86430.0,86429.0,0.00120576]
[1765964037284,0.56535082,86430.0,86429.0,0.00120576]
[1765964038082,0.60684782,86430.0,86429.0,0.00120576]
[1765964039185,0.56535082,86430.0,86429.0,0.00120576]
[1765964040230,0.56435082,86430.0,86429.0,0.00120576]
[1765964040638,0.26190974,86430.0,86429.0,0.00220576]
[1765964040839,0.25702967,86431.0,86429.0,0.00220576]
[1765964041048,0.23215981,86431.0,86429.0,0.00137742]
[1765964041549,0.23603994,86430.0,86429.0,0.00237742]
[1765964041716,0.23603994,86430.0,86429.0,0.00137742]
[1765964042151,0.23603994,86430.0,86429.0,0.00037742]
[1765964042502,0.26716142,86430.0,86429.0,0.00137742]
[1765964042919,0.23603994,86430.0,86429.0,0.00037742]
[1765964044891,0.23603994,86430.0,86429.0,0.00137742]
[1765964045483,0.23703994,86430.0,86429.0,0.00037742]
[1765964045716,0.23803994,86430.0,86429.0,0.00037742]
[1765964046617,0.2691913,86430.0,86429.0,0.00037742]
[1765964046771,0.5598913,86430.0,86429.0,0.00037742]
[1765964046975,0.58476116,86430.0,86429.0,0.00120576]
[1765964047177,0.5536098,86430.0,86429.0,0.00120576]
[1765964047590,0.5526098,86430.0,86429.0,0.00120576]
[1765964048329,0.5516098,86430.0,86429.0,0.00120576]
[1765964048780,0.5709298,86430.0,86429.0,0.00120576]
[1765964050810,0.63322965,86430.0,86429.0,0.00120576]
[1765964051225,0.5709298,86430.0,86429.0,0.00120576]
[1765964052317,0.63325765,86430.0,86429.0,0.00120576]
[1765964052786,0.58175132,86430.0,86429.0,0.00120576]
[1765964052916,0.04133019,86430.0,86429.0,0.00281862]
[1765964053124,0.0429919,86430.0,86429.0,0.00281862]
[1765964053327,0.0429919,86430.0,86429.0,0.00120576]
[1765964053782,0.27439303,86430.0,86429.0,0.00120576]
[1765964054185,0.53392265,86430.0,86429.0,0.00120576]
[1765964054360,0.55879251,86430.0,86429.0,0.00120576]
[1765964054762,0.55779251,86430.0,86429.0,0.00120576]
[1765964055179,0.55779251,86430.0,86429.0,0.00220576]
[1765964056337,0.03569138,86430.0,86429.0,0.00381862]
[1765964056627,0.01082152,86430.0,86429.0,0.00381862]
[1765964056804,0.01082152,86430.0,86429.0,0.00481862]
[1765964057009,0.00076,86431.0,86429.0,0.236222]
[1765964057215,0.00076,86431.0,86430.0,0.05185505]
[1765964057380,0.00076,86431.0,86430.0,0.00240933]
[1765964057590,0.00076,86431.0,86430.0,0.02072933]
[1765964058382,0.00076,86431.0,86430.0,0.02372933]
[1765964059118,0.00076,86431.0,86430.0,0.02672933]
[1765964059119,0.00176,86431.0,86430.0,0.02672933]
[1765964059765,0.00176,86431.0,86430.0,0.02372933]
[1765964060231,0.00176,86431.0,86430.0,0.02672933]
[1765964060440,0.00076,86431.0,86430.0,0.02372933]
[1765964060648,0.00176,86431.0,86430.0,0.1162252]
[1765964061054,0.00176,86431.0,86430.0,0.10234114]
[1765964061265,0.00076,86431.0,86430.0,0.09934114]
[1765964061442,0.00176,86431.0,86430.0,0.10234114]
[1765964061581,0.00176,86431.0,86430.0,0.1162252]
[1765964062038,0.00076,86431.0,86430.0,0.34462633]
[1765964062261,0.00176,86431.0,86430.0,0.33374227]
[1765964062803,0.00176,86431.0,86430.0,0.33074227]
[1765964063204,0.00176,86431.0,86430.0,0.33374227]
[1765964063406,0.00076,86431.0,86430.0,0.33074227]
[1765964063809,0.00176,86431.0,86430.0,0.33374227]
[1765964064209,0.00176,86431.0,86430.0,0.38376066]
[1765964064210,0.0002061,86431.0,86430.0,0.38376066]
[1765964064414,0.01079234,86467.0,86456.0,0.24289681]
[1765964064619,0.01079234,86467.0,86457.0,0.05533282]
[1765964064816,0.2907,86468.0,86457.0,0.28666159]
[1765964065028,0.2907,86468.0,86457.0,0.04376638]
[1765964065222,0.2907,86468.0,86457.0,0.05694568]
[1765964065624,0.29080489,86468.0,86457.0,0.05694568]
[1765964065843,0.29080489,86468.0,86458.0,0.05543126]
[1765964066143,0.29080489,86468.0,86458.0,0.05704412]
[1765964066144,0.08181632,86468.0,86458.0,0.05704412]
[1765964066341,0.00010489,86468.0,86458.0,0.06861042]
[1765964066459,0.00010489,86468.0,86459.0,0.01156617]
[1765964066657,0.00010489,86468.0,86460.0,0.01156604]
[1765964066858,0.00010489,86468.0,86461.0,0.12789705]
[1765964067062,0.00010489,86468.0,86461.0,0.14338899]
[1765964067263,0.00010489,86468.0,86463.0,0.01156564]
[1765964067463,0.00010489,86468.0,86467.0,0.23130211]
[1765964067706,0.00010489,86468.0,86467.0,0.23291497]
[1765964067878,0.00010489,86468.0,86467.0,0.34185883]
[1765964068864,0.00010489,86468.0,86467.0,0.34385883]
[1765964070007,0.00010489,86468.0,86467.0,0.34185883]
[1765964070434,0.00010489,86468.0,86467.0,0.34285883]
[1765964070846,0.00010489,86468.0,86467.0,0.34585883]
[1765964071279,0.00010489,86468.0,86467.0,0.34485883]
[1765964071700,0.00110489,86468.0,86467.0,0.34885883]
[1765964072738,0.00110489,86468.0,86467.0,0.34585883]
[1765964073280,0.00110489,86468.0,86467.0,0.36717883]
[1765964074466,0.00110489,86468.0,86467.0,0.34885883]
[1765964074660,0.00110489,86468.0,86467.0,0.36717883]
[1765964080475,0.00077454,86468.0,86467.0,0.36717883]
[1765964083307,0.00077454,86468.0,86467.0,0.36657883]
[1765964086177,0.00077454,86468.0,86467.0,0.85669722]
[1765964086449,0.00077454,86468.0,86467.0,0.70729722]
[1765964087220,0.01076762,86508.0,86497.0,0.01156109]
[1765964087424,0.01088099,86508.0,86498.0,0.33958296]
[1765964087633,0.01088099,86508.0,86499.0,0.04709249]
[1765964087829,0.00011337,86508.0,86500.0,0.01156069]
[1765964088031,0.00011337,86508.0,86500.0,0.24277224]
[1765964088371,0.00011337,86508.0,86501.0,0.23121119]
[1765964088671,0.00011337,86508.0,86501.0,0.01156055]
[1765964088828,0.00011337,86508.0,86502.0,0.06410085]
[1765964089033,0.00011337,86508.0,86503.0,0.01828]
[1765964089236,0.00111337,86508.0,86503.0,0.01828]
[1765964089438,0.00011337,86508.0,86503.0,0.01828]
[1765964089866,0.00111337,86508.0,86503.0,0.01828]
[1765964090352,0.11568651,86511.0,86503.0,0.01989286]
[1765964090553,0.001,86508.0,86504.0,0.03097655]
[1765964090779,0.11568651,86511.0,86504.0,0.03097655]
[1765964090952,0.11568651,86517.0,86504.0,0.03258941]
[1765964091153,0.01155855,86516.0,86504.0,0.03258941]
[1765964091471,0.24273289,86515.0,86504.0,0.00161286]
[1765964091672,0.24273773,86514.0,86504.0,0.00161286]
[1765964091851,0.24273295,86515.0,86504.0,0.00161286]
[1765964092062,0.01155868,86515.0,86504.0,0.00161286]
[1765964092261,0.01155895,86513.0,86505.0,0.01828]
[1765964092444,0.23117645,86514.0,86505.0,0.01839337]
[1765964092668,0.01155922,86511.0,86505.0,0.01839337]
[1765964092847,0.23119783,86506.0,86505.0,0.00011337]
[1765964093047,0.01155962,86508.0,86505.0,0.00011337]
[1765964093245,0.23119516,86507.0,86505.0,0.00011337]
[1765964093451,0.2427522,86508.0,86505.0,0.00011337]
[1765964093749,0.02577778,86511.0,86505.0,0.00011337]
[1765964093948,0.001,86511.0,86505.0,0.00011337]
[1765964094899,0.01255922,86511.0,86505.0,0.00011337]
[1765964095079,0.001,86511.0,86505.0,0.00111337]
[1765964095278,0.001,86511.0,86505.0,0.00272623]
[1765964095446,0.03116971,86518.0,86505.0,0.00272623]
[1765964095655,0.03116971,86518.0,86506.0,0.03654302]
[1765964095855,0.24273776,86514.0,86507.0,0.01828]
[1765964096163,0.01155855,86516.0,86507.0,0.01828]
[1765964096590,0.001,86511.0,86507.0,0.01828]
[1765964096791,0.24273096,86516.0,86505.0,0.00011337]
[1765964096999,0.01155868,86515.0,86506.0,0.01828]
[1765964097175,0.24373587,86514.0,86506.0,0.01828]
[1765964097377,0.01155909,86512.0,86506.0,0.01828]
[1765964097603,0.01155935,86510.0,86506.0,0.01828]
[1765964097927,0.01155935,86510.0,86505.0,0.00011337]
[1765964098081,0.01155895,86513.0,86505.0,0.00011337]
[1765964098465,0.02311844,86512.0,86505.0,0.00011337]
[1765964098719,0.001,86511.0,86505.0,0.00011337]
[1765964098894,0.01155935,86510.0,86505.0,0.00011337]
[1765964099213,0.24274426,86511.0,86505.0,0.00011337]
[1765964100321,0.03116971,86517.0,86512.0,0.2311818]
[1765964100618,0.03116971,86522.0,86513.0,0.02443543]
[1765964100821,0.03116971,86523.0,86513.0,0.02443543]
[1765964101024,0.11568651,86527.0,86513.0,0.02604829]
[1765964101025,0.03116971,86524.0,86513.0,0.02604829]
[1765964101227,0.03116971,86524.0,86514.0,0.01155882]
[1765964101533,0.03116971,86525.0,86513.0,0.00161286]
[1765964101881,0.11568651,86527.0,86510.0,0.2427452]
[1765964101882,0.03116971,86527.0,86518.0,0.00161286]
[1765964102099,0.0004,86528.0,86518.0,0.53734856]
[1765964102330,0.0004,86528.0,86518.0,0.52347862]
[1765964102512,0.0004,86528.0,86518.0,0.00161286]
[1765964102708,0.0014,86519.0,86518.0,0.25105862]
[1765964102911,0.0014,86519.0,86518.0,0.01828]
[1765964103092,0.0014,86519.0,86511.0,0.01155922]
[1765964103093,0.0004,86519.0,86511.0,0.01155922]
[1765964103295,0.0004,86519.0,86518.0,0.001]
[1765964103502,0.23156309,86519.0,86518.0,0.002]
[1765964103713,0.24237358,86519.0,86518.0,0.002]
[1765964103917,0.02949049,86519.0,86518.0,0.002]
[1765964104123,0.26065358,86519.0,86518.0,0.002]
[1765964104733,0.01155855,86516.0,86513.0,0.01828]
[1765964105093,0.11568651,86514.0,86511.0,0.002]
[1765964105218,0.11568651,86514.0,86513.0,0.01828]
[1765964105424,0.12649254,86514.0,86513.0,0.01828]
[1765964105778,0.12649254,86514.0,86511.0,0.01828]
[1765964105989,0.11568651,86514.0,86513.0,0.001]
[1765964106133,0.12649248,86514.0,86513.0,0.001]
[1765964106347,0.12649248,86514.0,86511.0,0.01828]
[1765964106659,0.01080597,86513.0,86511.0,0.01828]
[1765964108223,0.01080597,86513.0,86511.0,0.01928]
[1765964108788,0.01080597,86513.0,86511.0,0.01828]
[1765964108996,0.01080597,86513.0,86511.0,0.01928]
[1765964109272,0.01080597,86513.0,86512.0,0.01828]
[1765964110537,0.01080597,86513.0,86511.0,0.001]
[1765964110874,0.01080597,86513.0,86510.0,0.01828]
[1765964111285,0.01080597,86513.0,86512.0,0.001]
[1765964111725,0.01080597,86513.0,86512.0,0.02967124]
[1765964112843,0.01080597,86513.0,86512.0,0.03067124]
[1765964113022,0.01080597,86513.0,86512.0,0.001]
[1765964113406,0.01081475,86513.0,86512.0,0.001]
[1765964115029,0.01081475,86513.0,86512.0,0.01928]
[1765964118450,0.01081913,86513.0,86512.0,0.01928]
[1765964129239,0.24199825,86513.0,86512.0,0.01928]
[1765964129447,0.26677603,86513.0,86512.0,0.01928]
[1765964130173,0.03559691,86513.0,86512.0,0.01928]
[1765964130419,0.01081913,86513.0,86512.0,0.01928]
[1765964131703,0.24199825,86513.0,86512.0,0.001]
[1765964132033,0.05487691,86513.0,86512.0,0.001]
[1765964132232,0.03009913,86513.0,86512.0,0.001]
[1765964132397,0.26127825,86513.0,86512.0,0.001]
[1765964132599,0.07282779,86513.0,86505.0,0.00011337]
[1765964132933,0.01155922,86511.0,86505.0,0.00011337]
[1765964133133,0.02237848,86510.0,86505.0,0.00011337]
[1765964133293,0.01081913,86509.0,86505.0,0.00011337]
[1765964133716,0.01081913,86508.0,86505.0,0.00011337]
[1765964133898,0.01081913,86507.0,86505.0,0.00011337]
[1765964134096,0.01081913,86506.0,86505.0,0.00011337]
[1765964134502,0.01081913,86509.0,86505.0,0.00011337]
[1765964134736,0.01081913,86508.0,86505.0,0.00011337]
[1765964134884,0.01081913,86507.0,86505.0,0.00011337]
[1765964135079,0.01081913,86506.0,86505.0,0.00111337]
[1765964135495,0.24201696,86506.0,86505.0,0.00111337]
[1765964135700,0.01081913,86506.0,86505.0,0.00111337]
[1765964135902,0.01081913,86506.0,86505.0,0.00011337]
[1765964136166,0.01081913,86506.0,86505.0,0.00111337]
[1765964136357,0.24274994,86509.0,86505.0,0.00111337]
[1765964136358,0.01081913,86508.0,86505.0,0.00111337]
[1765964136502,0.01081913,86507.0,86505.0,0.00111337]
[1765964136703,0.01081913,86506.0,86505.0,0.00111337]
[1765964136959,0.24201696,86506.0,86505.0,0.00111337]
[1765964137107,0.01081913,86506.0,86505.0,0.00111337]
[1765964137469,0.02237875,86506.0,86505.0,0.00111337]
[1765964137899,0.02237875,86506.0,86505.0,0.00011337]
[1765964139051,0.01081913,86506.0,86505.0,0.00011337]
[1765964139271,0.03116971,86508.0,86505.0,0.00011337]
[1765964139475,0.01081913,86507.0,86505.0,0.00011337]
[1765964139869,0.01081913,86506.0,86505.0,0.00011337]
[1765964140068,0.01081913,86511.0,86505.0,0.00011337]
[1765964140268,0.01081913,86510.0,86505.0,0.00011337]
[1765964140484,0.01081913,86509.0,86505.0,0.00011337]
[1765964140769,0.03116971,86512.0,86505.0,0.00011337]
[1765964140770,0.01181913,86508.0,86505.0,0.00011337]
[1765964140991,0.01081913,86507.0,86505.0,0.00011337]
[1765964141199,0.01081913,86506.0,86505.0,0.00011337]
[1765964141639,0.001,86508.0,86505.0,0.00011337]
[1765964142091,0.01081913,86511.0,86505.0,0.00011337]
[1765964142497,0.11568651,86507.0,86505.0,0.00011337]
[1765964144002,0.11668651,86507.0,86505.0,0.00011337]
[1765964151499,0.34788185,86507.0,86505.0,0.00011337]
[1765964151702,0.23119783,86506.0,86505.0,0.00011337]
[1765964152215,0.25597561,86506.0,86505.0,0.00011337]
[1765964152635,0.54667561,86506.0,86505.0,0.00011337]
[1765964154418,0.55749402,86506.0,86505.0,0.00011337]
[1765964155055,0.57577402,86506.0,86505.0,0.00011337]
[1765964155257,0.57677402,86506.0,86505.0,0.00011337]
[1765964156241,0.61830361,86506.0,86505.0,0.00011337]
[1765964156825,0.38710578,86506.0,86505.0,0.00011337]
[1765964157030,0.34557619,86506.0,86505.0,0.00011337]
[1765964157224,0.32079841,86506.0,86505.0,0.00011337]
[1765964157629,0.55199624,86506.0,86505.0,0.00011337]
[1765964157847,0.28607402,86506.0,86505.0,0.00011337]
[1765964158052,0.03009841,86506.0,86505.0,0.00011337]
[1765964159452,0.26129624,86506.0,86505.0,0.00011337]
[1765964164005,0.03009841,86506.0,86505.0,0.00011337]
[1765964164433,0.03009841,86506.0,86505.0,0.00172623]
[1765964164634,0.001,86506.0,86505.0,0.23292673]
[1765964164917,0.001,86506.0,86505.0,0.30775668]
[1765964165444,0.0004,86519.0,86507.0,0.01155975]
[1765964165629,0.0004,86519.0,86509.0,0.33943882]
[1765964165833,0.01122061,86519.0,86509.0,0.35099831]
[1765964166037,0.01082061,86518.0,86509.0,0.34105168]
[1765964166275,0.01082061,86517.0,86510.0,0.11442641]
[1765964166489,0.01082061,86516.0,86510.0,0.11442641]
[1765964166701,0.01082061,86515.0,86510.0,0.11442641]
[1765964166888,0.0004,86519.0,86511.0,0.01828]
[1765964167051,0.0004,86519.0,86514.0,0.01155882]
[1765964167245,0.0004,86519.0,86514.0,0.01317168]
[1765964167493,0.0004,86519.0,86516.0,0.01155855]
[1765964167699,0.0004,86519.0,86516.0,0.01317141]
[1765964168029,0.0004,86519.0,86516.0,0.24433999]
[1765964168261,0.0014,86519.0,86517.0,0.2878378]
[1765964168456,0.0004,86519.0,86518.0,0.23116576]
[1765964168763,0.0014,86519.0,86518.0,0.23277862]
[1765964168905,0.0014,86519.0,86518.0,0.00161286]
[1765964169503,0.0004,86519.0,86518.0,0.23277862]
[1765964169706,0.0004,86519.0,86518.0,0.30958041]
[1765964169925,0.0014,86519.0,86518.0,0.30958041]
[1765964170246,0.0014,86519.0,86518.0,0.07841465]
[1765964171291,0.0014,86519.0,86518.0,0.23277862]
[1765964171927,0.0014,86519.0,86518.0,0.00161286]
[1765964172134,0.0014,86519.0,86518.0,0.23277862]